bitfinex/quotes_BTCUSD_20221001
["timestamp","ask_amount","ask_price","bid_price","bid_amount"]
[1664597370393,2.51541282,19409.0,19408.0,0.25989622]
[1664597370619,2.45641282,19409.0,19408.0,0.25989622]
[1664597371309,2.51541282,19409.0,19408.0,0.25989622]
[1664597372666,2.45641282,19409.0,19408.0,0.25989622]
[1664597373401,2.51541282,19409.0,19408.0,0.25989622]
[1664597373624,3.03063682,19409.0,19408.0,0.25989622]
[1664597374567,2.89097624,19409.0,19408.0,0.25989622]
[1664597374767,2.93129216,19409.0,19408.0,0.25989622]
[1664597375095,2.89097624,19409.0,19408.0,0.25989622]
[1664597375314,3.03063682,19409.0,19408.0,0.25989622]
[1664597375540,2.94997624,19409.0,19408.0,0.25989622]
[1664597375793,2.99029234,19409.0,19408.0,0.25989622]
[1664597375994,2.92979691,19409.0,19408.0,0.25989622]
[1664597376204,2.99029234,19409.0,19408.0,0.25989622]
[1664597376666,2.93129234,19409.0,19408.0,0.25989622]
[1664597377385,2.92979691,19409.0,19408.0,0.25989622]
[1664597378418,2.93129234,19409.0,19408.0,0.25989622]
[1664597378641,2.87079691,19409.0,19408.0,0.25989622]
[1664597378869,2.23048081,19409.0,19408.0,0.25989622]
[1664597379088,2.87079691,19409.0,19408.0,0.25989622]
[1664597379302,2.92979691,19409.0,19408.0,0.25989622]
[1664597379772,2.88948081,19409.0,19408.0,0.25989622]
[1664597380251,2.28948081,19409.0,19408.0,0.25989622]
[1664597380531,2.87079691,19409.0,19408.0,0.25989622]
[1664597381417,2.92979691,19409.0,19408.0,0.25989622]
[1664597382479,2.87079691,19409.0,19408.0,0.25989622]
[1664597383352,2.92979691,19409.0,19408.0,0.25989622]
[1664597384450,2.87079691,19409.0,19408.0,0.25989622]
[1664597385362,2.92979691,19409.0,19408.0,0.25989622]
[1664597386018,3.44152835,19409.0,19408.0,0.25989622]
[1664597386559,3.38252835,19409.0,19408.0,0.25989622]
[1664597387369,3.44152835,19409.0,19408.0,0.25989622]
[1664597388472,3.40121225,19409.0,19408.0,0.25989622]
[1664597388684,3.34221225,19409.0,19408.0,0.25989622]
[1664597388906,0.35819553,19410.0,19408.0,4.32087831]
[1664597389120,0.0403039,19412.0,19410.0,0.09]
[1664597389292,0.10075975,19414.0,19412.0,0.09]
[1664597389293,0.06046061,19414.0,19412.0,0.09]
[1664597389478,0.33,19416.0,19413.0,2.07763216]
[1664597389715,0.33,19416.0,19415.0,1.04]
[1664597389984,0.33,19416.0,19415.0,2.07763216]
[1664597390201,0.33,19416.0,19415.0,5.59266876]
[1664597390442,0.33,19416.0,19415.0,4.18503976]
[1664597390621,0.33,19416.0,19415.0,4.54266876]
[1664597390849,0.33,19416.0,19415.0,3.54266876]
[1664597391084,0.33,19416.0,19415.0,3.18503976]
[1664597391303,0.33,19416.0,19415.0,2.62166876]
[1664597391535,0.33,19416.0,19415.0,1.89900316]
[1664597391990,0.33,19416.0,19415.0,1.79900316]
[1664597392213,0.33,19416.0,19415.0,2.20663216]
[1664597392430,0.33,19416.0,19415.0,2.25663216]
[1664597392642,0.33,19416.0,19415.0,1.82000316]
[1664597392863,0.33,19416.0,19415.0,2.06459761]
[1664597393072,0.33,19416.0,19415.0,2.42222661]
[1664597393309,0.33,19416.0,19415.0,2.50122661]
[1664597393898,0.33,19416.0,19415.0,2.14359761]
[1664597394341,0.33,19416.0,19415.0,2.50122661]
[1664597394563,0.33,19416.0,19415.0,2.06459761]
[1664597394785,0.33,19416.0,19415.0,2.01459761]
[1664597395002,0.33,19416.0,19415.0,2.06459761]
[1664597395456,0.33,19416.0,19415.0,2.14359761]
[1664597395680,0.33,19416.0,19415.0,2.53236361]
[1664597395934,0.33,19416.0,19415.0,2.88999261]
[1664597396620,0.33,19416.0,19415.0,2.45336361]
[1664597397072,0.33,19416.0,19415.0,2.81099261]
[1664597397269,0.33,19416.0,19415.0,2.45336361]
[1664597397513,0.33,19416.0,19415.0,2.53236361]
[1664597397737,0.33,19416.0,19415.0,2.48236361]
[1664597398606,0.33,19416.0,19415.0,2.40336361]
[1664597420780,0.3381846,19416.0,19415.0,1.64260016]
[1664597421004,0.3381846,19416.0,19415.0,1.59260016]
[1664597422879,0.3381846,19416.0,19415.0,1.07753516]
[1664597423339,0.3381846,19416.0,19415.0,1.55253516]
[1664597423563,0.3381846,19416.0,19415.0,1.23653516]
[1664597423784,0.3381846,19416.0,19415.0,0.92826344]
[1664597424014,0.3381846,19416.0,19415.0,1.07152893]
[1664597424478,0.3381846,19416.0,19415.0,0.76926344]
[1664597424479,0.34095802,19416.0,19415.0,0.76926344]
[1664597424718,0.33982442,19416.0,19415.0,0.76926344]
[1664597425625,0.34095802,19416.0,19415.0,0.82526344]
[1664597426742,0.34095802,19416.0,19415.0,0.76926344]
[1664597427658,0.34095802,19416.0,19415.0,0.82626344]
[1664597428821,0.34095802,19416.0,19415.0,0.76926344]
[1664597429546,0.34095802,19416.0,19415.0,0.80526344]
[1664597429771,0.34095802,19416.0,19415.0,1.06526344]
[1664597430780,0.34095802,19416.0,19415.0,1.02926344]
[1664597431694,0.34095802,19416.0,19415.0,1.06526344]
[1664597432756,0.34095802,19416.0,19415.0,1.02926344]
[1664597433581,0.34095802,19416.0,19415.0,1.06526344]
[1664597434827,0.34095802,19416.0,19415.0,1.02926344]
[1664597435548,0.34095802,19416.0,19415.0,0.80773144]
[1664597436982,0.34095802,19416.0,19415.0,0.77173144]
[1664597437546,0.34095802,19416.0,19415.0,0.80773144]
[1664597438817,0.34095802,19416.0,19415.0,0.77173144]
[1664597439659,0.34095802,19416.0,19415.0,0.80773144]
[1664597441111,0.34095802,19416.0,19415.0,0.77173144]
[1664597441569,0.34095802,19416.0,19415.0,0.80773144]
[1664597442715,0.34095802,19416.0,19415.0,1.00709976]
[1664597442878,0.34095802,19416.0,19415.0,0.77173144]
[1664597443613,0.34095802,19416.0,19415.0,0.81573144]
[1664597444765,0.34095802,19416.0,19415.0,0.77173144]
[1664597445643,0.34095802,19416.0,19415.0,0.81573144]
[1664597446835,0.34095802,19416.0,19415.0,0.77173144]
[1664597447260,0.34095802,19416.0,19415.0,0.96749976]
[1664597447397,0.34095802,19416.0,19415.0,1.32507076]
[1664597447612,0.34095802,19416.0,19415.0,0.81573144]
[1664597448920,0.34095802,19416.0,19415.0,0.77173144]
[1664597449633,0.34095802,19416.0,19415.0,0.81573144]
[1664597450958,0.34095802,19416.0,19415.0,0.77173144]
[1664597451754,0.34095802,19416.0,19415.0,0.81562068]
[1664597453017,0.34095802,19416.0,19415.0,0.77162068]
[1664597453344,0.69852902,19416.0,19415.0,0.77162068]
[1664597453572,0.34095802,19416.0,19415.0,0.82062068]
[1664597453783,0.69852902,19416.0,19415.0,0.82062068]
[1664597454239,0.34095802,19416.0,19415.0,0.82062068]
[1664597454450,0.69852902,19416.0,19415.0,0.82062068]
[1664597454753,0.34095802,19416.0,19415.0,0.82062068]
[1664597454977,0.34095802,19416.0,19415.0,0.77162068]
[1664597455201,0.69852902,19416.0,19415.0,0.77162068]
[1664597455587,0.69852902,19416.0,19415.0,0.80362068]
[1664597455979,0.34095802,19416.0,19415.0,0.80362068]
[1664597456222,0.69852902,19416.0,19415.0,0.80362068]
[1664597456438,0.73892461,19416.0,19415.0,0.80362068]
[1664597456857,0.73892461,19416.0,19415.0,0.77162068]
[1664597457073,0.38135361,19416.0,19415.0,0.77162068]
[1664597457313,0.73892461,19416.0,19415.0,0.77162068]
[1664597457526,0.37635361,19416.0,19415.0,0.77162068]
[1664597457734,0.37635361,19416.0,19415.0,0.80362068]
[1664597457945,0.40236216,19416.0,19415.0,0.80362068]
[1664597458509,0.40236216,19416.0,19415.0,1.16119168]
[1664597459139,0.40236216,19416.0,19415.0,0.80362068]
[1664597459711,0.75993316,19416.0,19415.0,0.83562068]
[1664597459890,0.40236216,19416.0,19415.0,0.83562068]
[1664597460715,0.75993316,19416.0,19415.0,0.83562068]
[1664597460930,0.75993316,19416.0,19415.0,0.324]
[1664597461386,0.75993316,19416.0,19415.0,0.26]
[1664597461609,0.82052654,19416.0,19415.0,0.291]
[1664597461753,0.75993316,19416.0,19415.0,0.291]
[1664597462913,0.75993316,19416.0,19415.0,0.26]
[1664597463072,0.40236216,19416.0,19415.0,0.26]
[1664597463257,0.75993316,19416.0,19415.0,0.26]
[1664597463690,0.40236216,19416.0,19415.0,0.291]
[1664597464176,0.75993316,19416.0,19415.0,0.291]
[1664597464352,0.40236216,19416.0,19415.0,0.291]
[1664597464569,0.75993316,19416.0,19415.0,0.291]
[1664597464918,0.46295554,19416.0,19415.0,0.26]
[1664597465280,0.40236216,19416.0,19415.0,0.617571]
[1664597465513,0.40236216,19416.0,19415.0,0.26]
[1664597465737,0.40236216,19416.0,19415.0,0.291]
[1664597466184,0.75993316,19416.0,19415.0,0.291]
[1664597466704,0.40236216,19416.0,19415.0,0.291]
[1664597466940,0.75993316,19416.0,19415.0,0.26]
[1664597467162,0.40236216,19416.0,19415.0,0.26]
[1664597467849,0.75993316,19416.0,19415.0,0.291]
[1664597468315,0.40236216,19416.0,19415.0,0.291]
[1664597468766,0.75993316,19416.0,19415.0,0.291]
[1664597469002,0.40236216,19416.0,19415.0,0.26]
[1664597469465,0.75993316,19416.0,19415.0,0.26]
[1664597469683,0.40236216,19416.0,19415.0,0.291]
[1664597469894,0.40236216,19416.0,19415.0,0.648571]
[1664597470107,0.40236216,19416.0,19415.0,0.291]
[1664597470803,0.36196657,19416.0,19415.0,0.291]
[1664597471025,0.75993316,19416.0,19415.0,0.26]
[1664597471669,0.40236216,19416.0,19415.0,0.291]
[1664597471872,0.40236216,19416.0,19415.0,0.648571]
[1664597472074,0.40236216,19416.0,19415.0,0.291]
[1664597472548,0.75993316,19416.0,19415.0,0.291]
[1664597472669,0.40236216,19416.0,19415.0,0.291]
[1664597472890,0.40236216,19416.0,19415.0,0.26]
[1664597473115,0.75993316,19416.0,19415.0,0.26]
[1664597473725,0.40236216,19416.0,19415.0,0.291]
[1664597474047,0.75993316,19416.0,19415.0,0.291]
[1664597474266,0.40236216,19416.0,19415.0,0.291]
[1664597474485,0.75993316,19416.0,19415.0,0.291]
[1664597474700,0.40236216,19416.0,19415.0,0.291]
[1664597474925,0.36196657,19416.0,19415.0,0.26]
[1664597475608,0.71953757,19416.0,19415.0,0.26]
[1664597475835,0.71953757,19416.0,19415.0,0.291]
[1664597476280,0.36196657,19416.0,19415.0,0.291]
[1664597476937,0.75993316,19416.0,19415.0,0.26]
[1664597477171,0.40236216,19416.0,19415.0,0.26]
[1664597477610,0.75993316,19416.0,19415.0,0.26]
[1664597477809,0.75993316,19416.0,19415.0,0.291]
[1664597479018,0.75993316,19416.0,19415.0,0.26]
[1664597479253,0.40236216,19416.0,19415.0,0.26]
[1664597479494,0.75993316,19416.0,19415.0,0.26]
[1664597479721,0.40236216,19416.0,19415.0,0.291]
[1664597480163,0.75993316,19416.0,19415.0,0.291]
[1664597480365,0.40236216,19416.0,19415.0,0.291]
[1664597480515,0.36196657,19416.0,19415.0,0.291]
[1664597480954,0.71953757,19416.0,19415.0,0.26]
[1664597481199,0.36196657,19416.0,19415.0,0.26]
[1664597481538,0.36196657,19416.0,19415.0,0.2599395]
[1664597481750,0.36196657,19416.0,19415.0,0.2909395]
[1664597481902,0.40236216,19416.0,19415.0,0.2909395]
[1664597482521,0.36196657,19416.0,19415.0,0.6485105]
[1664597482763,0.36196657,19416.0,19415.0,0.2909395]
[1664597482996,0.36196657,19416.0,19415.0,0.2599395]
[1664597483630,0.36196657,19416.0,19415.0,0.2909395]
[1664597484963,0.36196657,19416.0,19415.0,0.2599395]
[1664597485194,0.71953757,19416.0,19415.0,0.2599395]
[1664597485620,0.36196657,19416.0,19415.0,0.3399395]
[1664597485838,0.71953757,19416.0,19415.0,0.3399395]
[1664597487012,0.36196657,19416.0,19415.0,0.2599395]
[1664597487686,0.36196657,19416.0,19415.0,0.3399395]
[1664597488316,0.75993316,19416.0,19415.0,0.3399395]
[1664597488741,0.36196657,19416.0,19415.0,0.3399395]
[1664597489086,0.36196657,19416.0,19415.0,0.2599395]
[1664597489301,0.71953757,19416.0,19415.0,0.2599395]
[1664597489691,0.71953757,19416.0,19415.0,0.3399395]
[1664597490068,0.36196657,19416.0,19415.0,0.3399395]
[1664597490425,0.71953757,19416.0,19415.0,0.3399395]
[1664597490930,0.36196657,19416.0,19415.0,0.3399395]
[1664597491146,0.71953757,19416.0,19415.0,0.2599395]
[1664597491285,0.36196657,19416.0,19415.0,0.2599395]
[1664597491752,0.36196657,19416.0,19415.0,0.3399395]
[1664597491974,0.71953757,19416.0,19415.0,0.3399395]
[1664597492882,0.36196657,19416.0,19415.0,0.3399395]
[1664597493096,0.71953757,19416.0,19415.0,0.2599395]
[1664597493307,0.36196657,19416.0,19415.0,0.2599395]
[1664597493536,0.71953757,19416.0,19415.0,0.2599395]
[1664597493777,0.36196657,19416.0,19415.0,0.3399395]
[1664597495017,0.36196657,19416.0,19415.0,0.2599395]
[1664597495449,0.71953757,19416.0,19415.0,0.2599395]
[1664597495843,0.36196657,19416.0,19415.0,0.3399395]
[1664597496264,0.75993316,19416.0,19415.0,0.3399395]
[1664597496722,0.46295554,19416.0,19415.0,0.6975105]
[1664597496939,0.82052654,19416.0,19415.0,0.2599395]
[1664597497422,0.94928554,19416.0,19415.0,0.2599395]
[1664597497871,0.94928554,19416.0,19415.0,0.3389395]
[1664597499135,1.20680454,19416.0,19415.0,0.3389395]
[1664597499339,1.20680454,19416.0,19415.0,0.2599395]
[1664597499554,0.84923354,19416.0,19415.0,0.2599395]
[1664597499795,0.84923354,19416.0,19415.0,0.3389395]
[1664597500128,0.78864016,19416.0,19415.0,0.3389395]
[1664597500259,0.84923354,19416.0,19415.0,0.3389395]
[1664597500471,1.20680454,19416.0,19415.0,0.3389395]
[1664597500688,0.88869216,19416.0,19415.0,0.3389395]
[1664597500899,0.59171454,19416.0,19415.0,0.3389395]
[1664597501123,0.59171454,19416.0,19415.0,0.2599395]
[1664597501124,0.88869216,19416.0,19415.0,0.2599395]
[1664597501674,0.94928554,19416.0,19415.0,0.2599395]
[1664597501869,0.53112116,19416.0,19415.0,0.3389395]
[1664597502936,0.88869216,19416.0,19415.0,0.3389395]
[1664597503110,0.88869216,19416.0,19415.0,0.2599395]
[1664597503536,0.75993316,19416.0,19415.0,0.2599395]
[1664597503745,0.75993316,19416.0,19415.0,0.3389395]
[1664597503962,0.40236216,19416.0,19415.0,0.3389395]
[1664597504434,0.75993316,19416.0,19415.0,0.3389395]
[1664597504878,0.40236216,19416.0,19415.0,0.6965105]
[1664597505041,0.36196657,19416.0,19415.0,0.25986961]
[1664597505262,0.36196657,19416.0,19415.0,1.15986961]
[1664597505516,0.36196657,19416.0,19415.0,1.97752646]
[1664597505730,0.36196657,19416.0,19415.0,1.90471233]
[1664597505942,0.36196657,19416.0,19415.0,0.33886961]
[1664597507029,0.36196657,19416.0,19415.0,0.25986961]
[1664597507805,0.36196657,19416.0,19415.0,0.33886961]
[1664597509099,0.36196657,19416.0,19415.0,0.25986961]
[1664597509776,0.36196657,19416.0,19415.0,0.33886961]
[1664597510020,0.71953757,19416.0,19415.0,0.33886961]
[1664597510207,0.75993316,19416.0,19415.0,0.33886961]
[1664597510419,0.71953757,19416.0,19415.0,0.33886961]
[1664597510897,0.36196657,19416.0,19415.0,0.33886961]
[1664597511115,0.36196657,19416.0,19415.0,0.25986961]
[1664597511818,0.36196657,19416.0,19415.0,0.28786961]
[1664597512388,0.36190605,19416.0,19415.0,0.28786961]
[1664597513089,0.36190605,19416.0,19415.0,0.25986961]
[1664597513776,0.36190605,19416.0,19415.0,0.28786961]
[1664597515077,0.36190605,19416.0,19415.0,0.25986961]
[1664597515967,0.36190605,19416.0,19415.0,0.28786961]
[1664597516421,0.71947705,19416.0,19415.0,0.28786961]
[1664597516638,0.36190605,19416.0,19415.0,0.28786961]
[1664597517198,0.36190605,19416.0,19415.0,0.25986961]
[1664597517888,0.82046602,19416.0,19415.0,0.28786961]
[1664597518113,0.75987264,19416.0,19415.0,0.28786961]
[1664597519226,0.40230164,19416.0,19415.0,0.28786961]
[1664597519469,0.75987264,19416.0,19415.0,0.25986961]
[1664597519935,0.75987264,19416.0,19415.0,0.28786961]
[1664597520389,0.40230164,19416.0,19415.0,0.28786961]
[1664597520606,0.75987264,19416.0,19415.0,0.28786961]
[1664597521546,0.75987264,19416.0,19409.0,0.10420464]
[1664597521547,1.51059984,19416.0,19409.0,0.10420464]
[1664597521764,1.51059984,19416.0,19409.0,0.51173144]
[1664597521765,0.05,19410.0,19409.0,0.51173144]
[1664597522006,0.61241033,19410.0,19409.0,0.51173144]
[1664597522251,0.51416575,19410.0,19409.0,0.51173144]
[1664597522710,0.66689742,19410.0,19409.0,0.51173144]
[1664597522942,0.30932642,19410.0,19409.0,0.86930244]
[1664597523169,0.30932642,19410.0,19409.0,0.51173144]
[1664597523449,0.35314096,19410.0,19409.0,0.51173144]
[1664597523686,0.35314096,19410.0,19408.0,0.51173144]
[1664597523687,1.09680596,19410.0,19408.0,0.51173144]
[1664597523908,0.407571,19409.0,19408.0,0.51173144]
[1664597524150,0.05,19409.0,19408.0,0.51173144]
[1664597524841,0.35932642,19409.0,19408.0,0.77173144]
[1664597525067,0.05,19409.0,19408.0,0.77173144]
[1664597525969,0.05,19409.0,19408.0,0.80673144]
[1664597526203,0.43386846,19409.0,19408.0,0.80673144]
[1664597526433,0.43386846,19409.0,19408.0,0.295]
[1664597526434,0.79143946,19409.0,19408.0,0.295]
[1664597526669,0.43386846,19409.0,19408.0,0.295]
[1664597527126,0.43386846,19409.0,19408.0,0.26]
[1664597527604,0.79143946,19409.0,19408.0,0.26]
[1664597528048,0.79143946,19409.0,19408.0,0.294]
[1664597529066,0.43386846,19409.0,19408.0,0.26]
[1664597529279,0.79143946,19409.0,19408.0,0.26]
[1664597529522,0.43386846,19409.0,19408.0,0.26]
[1664597529928,0.79143946,19409.0,19408.0,0.287]
[1664597530248,0.43386846,19409.0,19408.0,0.287]
[1664597531142,0.43386846,19409.0,19408.0,0.26]
[1664597531803,0.43386846,19409.0,19408.0,0.276]
[1664597532542,0.12454204,19409.0,19408.0,0.276]
[1664597532841,0.43386846,19409.0,19408.0,0.276]
[1664597533347,0.12454204,19409.0,19408.0,0.26]
[1664597533563,0.43386846,19409.0,19408.0,0.26]
[1664597533782,0.12454204,19409.0,19408.0,0.26]
[1664597534009,0.43386846,19409.0,19408.0,0.276]
[1664597534230,0.12454204,19409.0,19408.0,0.276]
[1664597534451,0.48211304,19409.0,19408.0,0.276]
[1664597534679,3.33076846,19409.0,19408.0,0.276]
[1664597534930,0.357571,19409.0,19408.0,1.68773144]
[1664597535159,0.257396,19410.0,19409.0,1.2]
[1664597535386,0.257396,19410.0,19409.0,0.86930244]
[1664597535631,0.257396,19410.0,19409.0,0.83123391]
[1664597536070,0.257396,19410.0,19409.0,0.86723391]
[1664597536339,0.257396,19410.0,19409.0,1.22480491]
[1664597537708,0.257396,19410.0,19409.0,1.18880491]
[1664597537942,0.257396,19410.0,19409.0,0.86723391]
[1664597538839,0.257396,19410.0,19409.0,1.22480491]
[1664597539276,0.257396,19410.0,19409.0,0.51173144]
[1664597539751,0.257396,19410.0,19409.0,0.86930244]
[1664597540016,0.257396,19410.0,19409.0,0.90530244]
[1664597540682,0.257396,19410.0,19409.0,0.54773144]
[1664597541127,0.257396,19410.0,19409.0,0.90530244]
[1664597541308,0.257396,19410.0,19409.0,0.86930244]
[1664597542091,0.257396,19410.0,19409.0,0.90530244]
[1664597542599,0.257396,19410.0,19409.0,0.5476614]
[1664597543018,0.257396,19410.0,19409.0,0.9052324]
[1664597543238,0.257396,19410.0,19409.0,0.8692324]
[1664597544136,0.257396,19410.0,19409.0,0.9052324]
[1664597544572,0.257396,19410.0,19409.0,0.5476614]
[1664597545245,0.257396,19410.0,19409.0,0.5116614]
[1664597545467,0.232396,19410.0,19409.0,0.5116614]
[1664597546130,0.232396,19410.0,19409.0,0.5476614]
[1664597546365,0.232396,19410.0,19409.0,0.9052324]
[1664597546575,0.232396,19410.0,19409.0,0.5476614]
[1664597547197,0.46291192,19416.0,19410.0,0.09]
[1664597547430,0.36190605,19416.0,19415.0,1.257571]
[1664597547712,0.49056605,19416.0,19415.0,0.86930244]
[1664597547911,0.49056605,19416.0,19415.0,0.51173144]
[1664597548167,0.49056605,19416.0,19415.0,1.76930244]
[1664597548282,0.49056605,19416.0,19415.0,1.41173144]
[1664597550026,0.49056605,19416.0,19415.0,1.43773144]
[1664597551401,0.49056605,19416.0,19415.0,1.41173144]
[1664597551618,0.49049305,19416.0,19415.0,1.41173144]
[1664597551978,0.49049305,19416.0,19415.0,1.43773144]
[1664597553303,0.49049305,19416.0,19415.0,1.41173144]
[1664597554081,0.49049305,19416.0,19415.0,1.43773144]
[1664597554309,0.36183305,19416.0,19415.0,1.43773144]
[1664597555181,0.36183305,19416.0,19415.0,1.41173144]
[1664597555995,0.36183305,19416.0,19415.0,1.60254552]
[1664597556252,0.36183305,19416.0,19415.0,1.96011652]
[1664597556481,0.36183305,19416.0,19415.0,1.43773144]
[1664597557593,0.36183305,19416.0,19415.0,1.41173144]
[1664597558119,0.36183305,19416.0,19415.0,1.43973144]
[1664597558334,0.36183305,19416.0,19415.0,2.00829302]
[1664597558571,0.36183305,19416.0,19415.0,2.36586402]
[1664597558748,0.36183305,19416.0,19415.0,2.63896836]
[1664597558957,0.36183305,19416.0,19415.0,2.28139736]
[1664597559227,0.36183305,19416.0,19415.0,1.94483578]
[1664597560119,0.36183305,19416.0,19415.0,1.97983578]
[1664597560338,0.36183305,19416.0,19415.0,2.33740678]
[1664597560484,0.36183305,19416.0,19415.0,1.97983578]
[1664597561342,0.36183305,19416.0,19415.0,1.94483578]
[1664597562169,0.36183305,19416.0,19415.0,2.00483578]
[1664597562538,0.36183305,19416.0,19415.0,2.36240678]
[1664597562733,0.36183305,19416.0,19415.0,2.00483578]
[1664597563171,0.36183305,19416.0,19415.0,1.94483578]
[1664597564070,0.36183305,19416.0,19415.0,2.00483578]
[1664597564226,0.36183305,19416.0,19415.0,0.83173144]
[1664597564447,0.36183305,19416.0,19415.0,2.68930244]
[1664597564666,0.36183305,19416.0,19415.0,3.06166402]
[1664597564893,0.36183305,19416.0,19415.0,2.10409302]
[1664597565123,0.36183305,19416.0,19415.0,2.46166402]
[1664597565344,0.36183305,19416.0,19415.0,2.68434836]
[1664597566047,0.36183305,19416.0,19415.0,2.76234836]
[1664597566628,0.36183305,19416.0,19415.0,2.40477736]
[1664597567064,0.36183305,19416.0,19415.0,2.76234836]
[1664597567274,0.36183305,19416.0,19415.0,2.68434836]
[1664597568116,0.36183305,19416.0,19415.0,2.76234836]
[1664597569399,0.36183305,19416.0,19415.0,2.68434836]
[1664597570127,0.36183305,19416.0,19415.0,2.76234836]
[1664597570544,0.36183305,19416.0,19415.0,2.45378678]
[1664597570803,0.36183305,19416.0,19415.0,2.40477736]
[1664597571016,0.36183305,19416.0,19415.0,2.76234836]
[1664597571523,0.36183305,19416.0,19415.0,2.09621578]
[1664597571619,0.36183305,19416.0,19415.0,2.32677736]
[1664597571850,0.36183305,19416.0,19415.0,2.68434836]
[1664597572121,0.36183305,19416.0,19415.0,2.76234836]
[1664597572833,0.36183305,19416.0,19415.0,2.45378678]
[1664597573424,0.36183305,19416.0,19415.0,2.37578678]
[1664597574096,0.36183305,19416.0,19415.0,2.45378678]
[1664597575053,0.36183305,19416.0,19415.0,2.76234836]
[1664597575277,0.36183305,19416.0,19415.0,2.09621578]
[1664597575494,0.36183305,19416.0,19415.0,2.37578678]
[1664597575712,0.36183305,19416.0,19415.0,2.68434836]
[1664597576060,0.36183305,19416.0,19415.0,2.76234836]
[1664597577345,0.36183305,19416.0,19415.0,2.32677736]
[1664597577563,0.36183305,19416.0,19415.0,2.68434836]
[1664597578186,0.36183305,19416.0,19415.0,2.76234836]
[1664597579409,0.36183305,19416.0,19415.0,2.68434836]
[1664597580324,0.36183305,19416.0,19415.0,2.76234836]
[1664597580564,0.30807719,19422.0,19415.0,2.76234836]
[1664597580565,0.16901835,19423.0,19420.0,0.09]
[1664597580812,0.000206,19424.0,19422.0,0.09]
[1664597581098,0.000206,19424.0,19423.0,1.73150266]
[1664597581339,0.000206,19424.0,19423.0,2.08907366]
[1664597582308,0.000206,19424.0,19423.0,2.14407366]
[1664597582525,0.000206,19424.0,19423.0,1.78650266]
[1664597582753,0.000206,19424.0,19423.0,1.83330244]
[1664597583674,0.000206,19424.0,19423.0,1.77830244]
[1664597584373,0.000206,19424.0,19423.0,2.21944144]
[1664597585278,0.000206,19424.0,19423.0,2.73429444]
[1664597585400,0.000206,19424.0,19423.0,2.67929444]
[1664597585637,0.000206,19424.0,19423.0,5.67036321]
[1664597585865,0.000206,19424.0,19423.0,4.10668365]
[1664597586138,0.000206,19424.0,19423.0,3.20111265]
[1664597586296,0.000206,19424.0,19423.0,3.55868365]
[1664597586762,0.000206,19424.0,19423.0,8.55868365]
[1664597586967,0.000206,19424.0,19423.0,8.20111265]
[1664597587197,0.000206,19424.0,19423.0,8.55868365]
[1664597587453,0.000206,19424.0,19423.0,8.50668365]
[1664597587679,0.000206,19424.0,19423.0,3.50668365]
[1664597587906,0.000206,19424.0,19423.0,8.50668365]
[1664597588129,0.000206,19424.0,19423.0,7.32711265]
[1664597588345,0.000206,19424.0,19423.0,7.68468365]
[1664597588831,0.000206,19424.0,19423.0,8.58468365]
[1664597589654,0.000206,19424.0,19423.0,7.60668365]
[1664597590096,0.000206,19424.0,19423.0,8.50668365]
[1664597590318,0.000206,19424.0,19423.0,8.55868365]
[1664597590783,0.000206,19424.0,19423.0,7.65868365]
[1664597591007,0.000206,19424.0,19423.0,6.99034143]
[1664597591228,0.000206,19424.0,19423.0,7.65868365]
[1664597591456,0.000206,19424.0,19423.0,7.60668365]
[1664597591884,0.000206,19424.0,19423.0,8.50668365]
[1664597592315,0.000206,19424.0,19423.0,7.94468365]
[1664597592760,0.000206,19424.0,19423.0,7.27634143]
[1664597592969,0.000206,19424.0,19423.0,7.94468365]
[1664597593421,0.000206,19424.0,19423.0,2.19834143]
[1664597593653,0.000206,19424.0,19423.0,2.55591243]
[1664597594187,0.000206,19424.0,19423.0,2.63391243]
[1664597594856,0.000206,19424.0,19423.0,2.94468365]
[1664597595066,0.000206,19424.0,19423.0,2.27634143]
[1664597595510,0.000206,19424.0,19423.0,2.55591243]
[1664597595730,0.000206,19424.0,19423.0,2.19834143]
[1664597595940,0.000206,19424.0,19423.0,2.55591243]
[1664597596393,0.000206,19424.0,19423.0,2.25034143]
[1664597596828,0.000206,19424.0,19423.0,2.91868365]
[1664597597056,0.000206,19424.0,19423.0,2.60791243]
[1664597597514,0.000206,19424.0,19423.0,2.55591243]
[1664597598201,0.000206,19424.0,19423.0,2.60791243]
[1664597598415,0.000206,19424.0,19423.0,2.25034143]
[1664597598857,0.000206,19424.0,19423.0,2.60791243]
[1664597599071,0.000206,19424.0,19423.0,2.91868365]
[1664597599312,0.000206,19424.0,19423.0,2.56111265]
[1664597599530,0.000206,19424.0,19423.0,2.50911265]
[1664597599742,0.000206,19424.0,19423.0,2.86668365]
[1664597600408,0.000206,19424.0,19423.0,2.91868365]
[1664597601566,0.000206,19424.0,19423.0,2.86668365]
[1664597601963,0.000206,19424.0,19423.0,2.50911265]
[1664597602218,9.192e-05,19424.0,19423.0,2.91868365]
[1664597603262,0.12368892,19425.0,19424.0,0.09]
[1664597603482,0.12368892,19425.0,19424.0,1.55173144]
[1664597603698,0.12368892,19425.0,19424.0,1.87466558]
[1664597603915,0.12368892,19425.0,19424.0,2.23223658]
[1664597604131,0.12368892,19425.0,19424.0,0.97466558]
[1664597604386,0.12368892,19425.0,19424.0,0.62173144]
[1664597604833,0.12368892,19425.0,19424.0,0.97930244]
[1664597605507,0.12368892,19425.0,19424.0,0.51173144]
[1664597605719,0.12368892,19425.0,19424.0,0.56173144]
[1664597605957,0.12368892,19425.0,19424.0,0.51173144]
[1664597606384,0.12368892,19425.0,19424.0,0.58873144]
[1664597607504,0.12368892,19425.0,19424.0,0.51173144]
[1664597608305,0.12368892,19425.0,19424.0,0.57173144]
[1664597609511,0.12368892,19425.0,19424.0,0.51173144]
[1664597609968,0.12368892,19425.0,19424.0,0.56173144]
[1664597610168,0.12368892,19425.0,19424.0,0.51173144]
[1664597610487,0.12368892,19425.0,19424.0,0.62173144]
[1664597610669,0.12368892,19425.0,19424.0,0.57173144]
[1664597610890,0.12368892,19425.0,19424.0,0.92930244]
[1664597611106,0.12368892,19425.0,19424.0,0.57173144]
[1664597611465,0.12368892,19425.0,19424.0,0.62173144]
[1664597611916,0.12368892,19425.0,19424.0,0.51173144]
[1664597612144,0.12368892,19425.0,19424.0,0.86930244]
[1664597612363,0.12368892,19425.0,19424.0,0.92930244]
[1664597613051,0.12368892,19425.0,19424.0,0.57173144]
[1664597613265,0.12368892,19425.0,19424.0,0.92930244]
[1664597613472,0.12368892,19425.0,19424.0,0.86930244]
[1664597613705,0.12368892,19425.0,19424.0,0.51173144]
[1664597614136,0.12368892,19425.0,19424.0,0.86930244]